bitfinex-derivatives/quotes_ETHF0:USTF0_20251013
["timestamp","ask_amount","ask_price","bid_price","bid_amount"]
[1760341343459,3.05377822,4197.2,4197.0,0.1328]
[1760341343663,1.27914568,4197.6,4197.0,0.1328]
[1760341343865,3.05377822,4197.6,4197.0,0.1328]
[1760341344168,3.05377822,4197.4,4197.0,0.1328]
[1760341344461,1.27914568,4197.6,4197.5,0.4772]
[1760341344666,1.27914568,4197.7,4197.6,0.3444]
[1760341344855,1.27914568,4197.6,4197.5,0.90572]
[1760341345658,1.27914568,4197.6,4197.5,4.11352]
[1760341346666,5.52e-06,4197.8,4197.7,0.4285]
[1760341346866,5.52e-06,4197.8,4197.7,0.7729]
[1760341347959,1.2791512,4197.8,4197.7,0.3444]
[1760341350769,1.2791512,4197.8,4197.7,0.7729]
[1760341351569,5.52e-06,4197.8,4197.7,0.4285]
[1760341352465,1.2791512,4197.8,4197.7,0.4285]
[1760341352655,1.2791512,4197.8,4197.7,0.8264]
[1760341352859,5.52e-06,4197.8,4197.7,0.4285]
[1760341356370,2.55829688,4197.8,4197.7,0.4285]
[1760341356867,1.2791512,4197.8,4197.7,0.8264]
[1760341357265,2.55829688,4197.8,4197.7,0.8264]
[1760341357471,2.55829688,4197.8,4197.7,0.3979]
[1760341358362,2.98678688,4197.8,4197.7,0.3979]
[1760341358671,2.55829688,4197.8,4197.7,0.3979]
[1760341361866,2.80889688,4197.8,4197.7,0.3979]
[1760341362262,0.2506,4197.6,4197.5,1.92865432]
[1760341362773,3.33769252,4197.6,4197.5,1.92865432]
[1760341365274,0.67916,4197.1,4197.0,3.2078]
[1760341365784,3.77583866,4197.1,4197.0,3.2078]
[1760341366480,3.77583866,4197.1,4197.0,3.6057]
[1760341367380,3.77583866,4197.1,4197.0,3.2078]
[1760341367579,3.77583866,4197.1,4196.8,0.00218302]
[1760341367580,0.68258,4196.9,4196.8,0.00218302]
[1760341367881,3.71093732,4196.9,4196.8,0.00218302]
[1760341368779,3.71093732,4196.9,4196.0,3.2078]
[1760341368780,0.68046,4196.1,4196.0,3.2078]
[1760341368978,0.42866,4196.1,4196.0,3.636]
[1760341369283,3.50826513,4196.1,4196.0,3.636]
[1760341369676,3.50826513,4196.1,4196.0,3.63874805]
[1760341369976,3.75866513,4196.1,4196.0,0.00274805]
[1760341371180,4.30201319,4196.1,4196.0,0.00274805]
[1760341371382,0.42868,4195.9,4195.8,0.00658]
[1760341371587,0.67908,4195.9,4195.8,0.00658]
[1760341371783,4.3704218,4195.9,4195.8,0.00658]
[1760341371983,4.1200218,4195.9,4195.8,0.00658]
[1760341372184,3.14799374,4195.9,4195.8,0.40488]
[1760341372577,0.42868,4196.0,4195.9,0.3983]
[1760341372884,3.57224779,4196.0,4195.9,0.3983]
[1760341373278,3.84534779,4196.0,4195.9,0.3983]
[1760341373478,4.12954779,4196.0,4195.9,0.3983]
[1760341374088,3.84534779,4196.0,4195.9,0.3983]
[1760341374380,3.57224779,4196.0,4195.9,0.6647]
[1760341374586,3.57224779,4196.0,4195.9,0.9306]
[1760341374991,3.14356779,4196.0,4195.9,0.9306]
[1760341375288,3.63642,4196.5,4196.4,0.6647]
[1760341375488,4.45201371,4196.5,4196.4,0.6647]
[1760341375690,7.57758466,4196.5,4196.4,0.6647]
[1760341376086,6.60647095,4196.5,4196.4,0.9306]
[1760341376391,0.70169,4196.9,4196.8,0.9306]
[1760341376586,0.98589,4196.9,4196.8,0.9306]
[1760341376795,4.15201512,4196.9,4196.8,0.9306]
[1760341377092,3.59471512,4196.9,4196.8,0.9306]
[1760341377680,3.2078,4197.0,4196.8,0.5323]
[1760341377890,3.4809,4197.0,4196.9,0.6647]
[1760341378085,3.2078,4197.0,4196.9,0.9306]
[1760341378792,5.52e-06,4197.8,4197.6,0.3983]
[1760341378991,5.52e-06,4197.8,4197.7,0.3983]
[1760341380289,3.24925322,4199.0,4198.5,0.1745]
[1760341380487,0.2504,4198.9,4198.1,0.3983]
[1760341380796,0.2504,4198.9,4198.2,0.3983]
[1760341380797,3.14904792,4198.4,4198.2,0.3983]
[1760341380996,3.57742792,4198.9,4198.2,0.3983]
[1760341381196,3.57742792,4198.9,4198.0,0.1745]
[1760341381197,0.00181603,4198.9,4198.5,0.1745]
[1760341381497,3.14904792,4198.7,4198.6,0.3983]
[1760341381696,3.09250378,4198.8,4198.6,0.3983]
[1760341381884,0.00181603,4198.9,4198.5,0.1745]
[1760341382090,3.09250378,4198.8,4198.6,0.3983]
[1760341383594,3.09250378,4198.8,4198.3,3.2078]
[1760341383595,0.2504,4198.7,4198.3,3.6061]
[1760341383899,3.08737739,4198.6,4198.1,0.3983]
[1760341384201,0.2504,4198.5,4197.8,0.3983]
[1760341384500,3.10472733,4198.4,4197.8,0.82678]
[1760341384697,3.10472733,4198.4,4197.9,0.3983]
[1760341384893,3.10472733,4198.4,4198.0,0.1745]
[1760341385395,0.2504,4198.3,4198.0,0.5728]
[1760341385699,0.42848,4198.0,4197.6,3.2078]
[1760341385894,0.2504,4197.8,4197.6,3.6061]
[1760341386093,0.2504,4197.8,4197.7,0.3983]
[1760341386293,0.42849,4197.9,4197.7,0.3983]
[1760341386496,3.05530682,4197.8,4197.7,0.3983]
[1760341386794,0.42849,4197.9,4197.7,0.3983]
[1760341386997,0.42849,4197.9,4196.6,1.07153]
[1760341386998,0.42854,4197.4,4197.1,3.6061]
[1760341387201,0.2504,4197.3,4197.1,3.6061]
[1760341387398,3.30570682,4197.3,4197.2,0.3983]
[1760341388198,3.05530682,4197.3,4197.2,0.3983]
[1760341388498,0.2504,4197.2,4197.1,3.2078]
[1760341388692,3.48385682,4197.3,4196.7,0.3983]
[1760341388693,0.67898,4197.0,4196.7,0.3983]
[1760341388889,0.67898,4197.0,4196.6,3.2078]
[1760341389093,0.2504,4196.7,4196.6,3.2078]
[1760341389298,0.42864,4196.4,4196.1,3.6061]
[1760341389503,0.2504,4196.3,4196.1,3.6061]
[1760341389703,0.67908,4196.0,4195.8,0.00932879]
[1760341389898,0.42868,4196.0,4195.8,0.00932879]
[1760341390199,3.32107131,4195.9,4195.8,0.00932879]
[1760341390404,3.07263139,4195.9,4195.8,0.40762879]
[1760341391000,3.32303139,4195.9,4195.8,0.00932879]
[1760341391906,3.07263139,4195.9,4195.8,0.40762879]
[1760341392209,3.32303139,4195.9,4195.8,0.00932879]
[1760341392601,3.32303139,4195.9,4195.8,0.40762879]
[1760341392799,3.07263139,4195.9,4195.8,0.40762879]
[1760341393296,3.32303139,4195.9,4195.8,0.00932879]
[1760341393503,0.25236008,4195.9,4195.8,0.00932879]
[1760341393893,3.28440404,4195.9,4195.8,0.00932879]
[1760341394107,0.42877,4195.1,4194.9,0.3983]
[1760341394306,0.42877,4195.1,4194.5,0.5728]
[1760341394507,0.03,4194.8,4194.6,0.3983]
[1760341394709,0.03,4194.8,4194.5,0.1745]
[1760341394905,0.03,4194.8,4194.6,0.3983]
[1760341395111,0.03,4194.8,4194.6,0.00199972]
[1760341395312,0.03,4194.8,4194.7,0.3983]
[1760341398711,0.03,4194.8,4194.6,3.63860972]
[1760341398712,0.43065008,4195.9,4195.5,0.1745]
[1760341399118,3.0504662,4195.8,4195.7,0.3983]
[1760341399312,0.00196008,4195.9,4195.6,0.42871]
[1760341399618,0.00196008,4195.9,4195.7,0.3983]
[1760341399819,0.00196008,4195.9,4195.7,0.827]
[1760341400120,0.00196008,4195.9,4195.8,3.6242]
[1760341400318,0.23826008,4195.9,4195.6,0.4164]
[1760341400518,0.00196008,4195.9,4195.6,0.42871]
[1760341400720,0.00196008,4195.9,4195.6,0.4164]
[1760341401116,0.00196008,4195.9,4195.8,0.4164]
[1760341402021,0.00196008,4195.9,4195.8,0.8451]
[1760341402425,0.00196008,4195.9,4195.8,0.4164]
[1760341402720,0.2363,4195.8,4195.3,3.2078]
[1760341402920,3.35642913,4195.9,4195.3,3.2078]
[1760341403114,3.11816905,4195.7,4195.3,3.2078]
[1760341403422,0.2363,4195.7,4195.4,0.4164]
[1760341403723,3.03693466,4195.6,4195.4,0.84513]
[1760341403919,3.27323466,4195.6,4195.4,0.84513]
[1760341404312,3.03693466,4195.8,4195.4,0.42873]
[1760341404621,3.29165692,4195.5,4195.4,0.42873]
[1760341404820,3.05535692,4195.8,4195.3,3.2078]
[1760341405118,3.29165692,4195.5,4195.3,3.63654]
[1760341405320,0.2363,4195.5,4195.3,3.63654]
[1760341405510,0.2363,4195.5,4195.3,4.05294]
[1760341405715,3.09936108,4195.4,4195.3,4.05294]
[1760341407817,0.23826008,4195.9,4195.6,0.4164]
[1760341408017,0.23826008,4195.9,4195.7,0.4164]
[1760341408222,3.63059749,4195.8,4195.7,0.4164]
[1760341408425,3.63059749,4195.8,4195.7,0.7012]
[1760341408723,3.34559749,4195.8,4195.7,0.9751]
[1760341408914,3.63059749,4195.8,4195.7,0.9751]
[1760341409825,0.5567,4195.6,4195.5,0.5836]
[1760341410726,0.5567,4195.6,4195.5,0.8684]
[1760341411018,0.27366008,4195.9,4195.8,0.2848]
[1760341411224,0.27366008,4195.9,4195.8,0.7012]
[1760341411418,3.62609857,4195.9,4195.8,0.7012]
[1760341411622,0.2363,4195.8,4195.5,0.4164]
[1760341411924,4.05478857,4195.9,4195.5,0.8684]
[1760341411925,0.5567,4195.6,4195.5,0.8684]
[1760341412328,0.793,4195.6,4195.5,0.4164]
[1760341412818,0.2717,4195.1,4195.0,0.1745]
[1760341413021,0.2363,4195.5,4195.1,0.42877]
[1760341413224,0.4287,4195.8,4195.1,0.4164]
[1760341413435,3.33630088,4195.4,4195.3,0.7012]
[1760341413725,0.5567,4195.4,4195.3,1.12994]
[1760341414630,0.793,4195.4,4195.3,0.84514]
[1760341414925,0.793,4195.4,4195.3,0.4164]
[1760341415125,0.5567,4195.4,4195.3,0.4164]
[1760341415425,0.5567,4195.4,4195.3,0.7012]
[1760341415824,0.5567,4194.9,4194.8,3.6242]
[1760341416124,0.5567,4194.9,4194.8,3.909]
[1760341416326,0.5567,4194.9,4194.8,4.1829]
[1760341417127,0.5567,4194.9,4194.8,3.6242]
[1760341417320,0.5567,4194.9,4194.8,3.909]
[1760341418225,0.5567,4194.9,4194.8,0.7012]
[1760341418918,0.9855,4194.8,4194.6,0.00199972]
[1760341419119,1.34069273,4194.7,4194.6,0.00199972]
[1760341419321,3.90360924,4194.7,4194.6,0.00199972]
[1760341419521,4.45131573,4194.7,4194.6,0.00199972]
[1760341420528,1.34070649,4194.7,4194.6,0.00199972]
[1760341420723,4.49019017,4194.7,4194.6,0.00199972]
[1760341421030,9.26628279,4194.7,4194.6,0.00199972]
[1760341421628,0.791,4193.9,4193.8,3.2078]
[1760341421824,0.791,4193.9,4193.5,0.5836]
[1760341422023,0.791,4193.6,4193.3,3.2078]
[1760341422218,0.42891,4193.7,4193.3,3.6242]
[1760341422219,0.5567,4193.4,4193.3,3.6242]
[1760341422530,3.89710913,4193.4,4193.3,3.21062006]
[1760341422923,3.89710913,4193.4,4193.3,0.00282006]
[1760341425630,3.89710913,4193.4,4193.3,3.21062006]
[1760341427731,3.39110913,4193.4,4193.3,4.16072006]
[1760341427922,0.545,4194.3,4194.1,0.3911]
[1760341428128,0.545,4194.2,4194.1,0.9501]
[1760341428338,3.40812238,4194.4,4194.3,0.9501]
[1760341428535,0.2758,4194.4,4194.3,0.9501]
[1760341428834,3.82854585,4194.4,4194.3,0.3911]
[1760341430726,0.7608,4194.1,4194.0,3.2078]
[1760341430932,5.53689262,4194.1,4194.0,3.2078]
[1760341431132,8.64077827,4194.1,4194.0,3.2078]
[1760341431534,9.06964827,4194.1,4194.0,3.2078]
[1760341432340,4.29355565,4194.1,4194.0,3.2078]
[1760341433426,0.5408,4193.5,4193.4,3.2078]
[1760341433626,0.7608,4193.5,4193.4,3.2078]
[1760341433836,3.8685476,4193.5,4193.4,3.2078]
[1760341434239,3.8685476,4193.5,4193.4,3.6032]
[1760341434637,3.8685476,4193.5,4193.4,0.3954]
[1760341434838,3.8685476,4193.5,4193.2,0.42896]
[1760341435137,0.7608,4193.4,4193.2,0.42896]
[1760341435542,0.5408,4193.4,4193.3,0.66532006]
[1760341436745,0.7608,4193.4,4193.3,0.00282006]
[1760341437848,0.7608,4193.4,4193.3,0.39822006]
[1760341438348,0.7608,4193.4,4193.3,0.00282006]
[1760341438648,0.5408,4193.4,4193.3,0.93522006]
[1760341439156,0.2741,4193.9,4193.8,0.9659]
[1760341439450,0.5408,4193.9,4193.8,0.9659]
[1760341439650,0.2741,4194.3,4194.2,0.69595]
[1760341439854,0.2741,4194.3,4194.2,0.96585]
[1760341440150,3.40372421,4194.3,4194.2,0.96585]
[1760341440350,3.67042421,4194.3,4194.2,0.3954]
[1760341440549,3.89042421,4194.3,4194.2,0.3954]
[1760341441543,3.89042421,4194.3,4194.0,0.5505]
[1760341441544,3.67042421,4194.3,4194.0,0.5505]
[1760341441740,3.89042421,4194.3,4194.1,0.3954]
[1760341441948,3.89042421,4194.3,4194.0,0.58397]
[1760341442160,3.67042421,4194.3,4194.1,3.2078]
[1760341442453,3.67042421,4194.3,4194.2,0.6625]
[1760341443348,3.2078,4195.0,4194.2,0.9324]
[1760341443550,0.5408,4194.7,4194.6,0.6625]
[1760341443850,3.91092178,4194.7,4194.6,0.3954]
[1760341444050,0.7608,4194.7,4194.6,0.3954]
[1760341444251,3.91092178,4194.7,4194.6,0.3954]
[1760341445449,0.5408,4194.2,4194.1,3.6032]
[1760341445752,0.7608,4194.2,4194.1,3.6032]
[1760341446251,0.5408,4194.2,4194.1,3.8703]
[1760341447251,0.22,4194.6,4194.1,4.1402]
[1760341447451,5.05019262,4194.8,4194.7,0.9324]
[1760341447748,9.22430139,4194.8,4194.7,0.3954]
[1760341448554,9.22445165,4194.8,4194.7,0.3954]
[1760341448755,9.00445165,4194.8,4194.5,0.5505]
[1760341448955,0.5408,4194.1,4194.0,0.5505]
[1760341449258,0.7608,4194.1,4194.0,0.5505]
[1760341449553,0.5408,4194.1,4194.0,0.8176]
[1760341450756,0.5408,4193.9,4193.8,0.3954]
[1760341451250,0.5408,4193.9,4193.7,3.2078]
[1760341451251,0.7608,4193.8,4193.7,3.2078]
[1760341451551,3.82343113,4193.8,4193.7,3.2078]
[1760341452153,3.82343113,4193.8,4193.7,3.6032]
[1760341453058,3.33673113,4193.8,4193.7,4.1402]
[1760341453247,3.06263113,4193.8,4193.7,4.1402]
[1760341453748,0.42885,4194.3,4193.8,0.4289]
[1760341453944,0.70295,4194.3,4194.2,4.1402]
[1760341454146,0.96965,4194.3,4194.2,4.1402]
[1760341454348,4.24554246,4194.3,4194.2,3.2078]
[1760341454857,0.5408,4193.9,4193.8,0.3954]
[1760341455054,0.96969,4193.9,4193.8,0.3954]
[1760341455245,0.2741,4194.1,4194.0,0.1551]
[1760341455450,0.2741,4194.1,4194.0,0.425]
[1760341455758,3.66491103,4194.1,4193.7,3.2078]
[1760341455961,0.5408,4193.9,4193.8,0.3954]
[1760341456352,0.5408,4193.9,4193.8,0.9324]
[1760341457660,0.5408,4193.9,4193.8,0.3954]
[1760341457953,0.5408,4193.9,4193.7,3.2078]
[1760341457954,0.7608,4193.8,4193.7,3.2078]
[1760341458160,9.60210784,4193.8,4192.7,1.25944786]
[1760341458353,0.42901,4192.8,4192.5,0.4222]
[1760341458549,0.42898,4193.0,4192.5,0.4222]
[1760341458752,3.2078,4193.1,4193.0,0.6921]
[1760341458956,3.75384673,4193.1,4193.0,0.425]
[1760341459154,11.56443377,4193.1,4193.0,0.15682207]
[1760341460261,11.56443377,4193.1,4193.0,0.55682207]
[1760341460453,11.56443377,4193.1,4193.0,0.00172207]
[1760341463863,11.56443377,4193.1,4192.0,0.5551]
[1760341464170,4.77609262,4192.3,4192.0,0.1551]
[1760341464569,0.42907,4192.1,4192.0,0.5551]
[1760341464766,0.42907,4192.1,4192.0,0.55704235]
[1760341464967,3.59217079,4192.1,4192.0,0.55704235]
[1760341465164,0.42911,4191.8,4191.6,0.4]
[1760341465467,3.59221079,4191.7,4191.6,0.4]
[1760341465955,3.59221079,4191.7,4191.5,0.1551]
[1760341466163,3.59221079,4191.7,4191.6,0.4]
[1760341467162,3.16310079,4191.7,4191.0,0.1688]
[1760341467365,7.98389262,4191.1,4191.0,0.5688]
[1760341467561,7.98389262,4191.1,4190.5,0.1688]
[1760341467562,7.98389262,4191.1,4190.6,0.4]
[1760341467766,0.42921,4190.8,4190.6,0.4]
[1760341467958,0.42922,4190.7,4190.6,0.4]
[1760341468164,3.58367741,4190.7,4190.6,0.4]
[1760341468358,3.15445741,4190.7,4190.6,0.40219554]
[1760341468566,3.15445741,4190.7,4190.6,0.68039554]
[1760341468862,3.52153546,4190.9,4190.6,0.00219554]
[1760341469061,0.4292,4190.9,4190.6,0.00219554]
[1760341469264,3.09233546,4190.8,4190.7,0.4]
[1760341469869,3.09233546,4190.8,4190.7,0.6782]
[1760341470263,3.4652796,4191.0,4190.6,0.28039554]
[1760341470474,0.4292,4190.9,4190.6,0.00219554]
[1760341470671,8.41307262,4191.1,4191.0,0.1688]
[1760341470873,8.41307262,4191.1,4191.0,0.5688]
[1760341471173,0.42921,4190.8,4190.7,0.4]
[1760341471470,7.98389262,4191.1,4191.0,0.5688]
[1760341471869,11.07072221,4191.1,4191.0,0.5688]
[1760341472172,0.42921,4190.8,4190.7,0.4]
[1760341472570,3.51603959,4190.8,4190.7,0.4]
[1760341473974,3.51603959,4190.8,4190.6,0.40219554]
[1760341474171,3.51603959,4190.8,4190.7,0.4]
[1760341477574,8.29213221,4190.8,4190.7,0.4]
[1760341478769,8.29213221,4190.8,4190.6,0.00219554]
[1760341478974,8.29213221,4190.8,4190.7,0.4]
[1760341479375,3.51603959,4190.8,4190.7,0.4]
[1760341480573,3.51603959,4190.8,4190.6,0.00219554]
[1760341481371,1.66096093,4190.7,4190.6,0.00219554]
[1760341481774,4.74709902,4190.7,4190.6,0.00219554]
[1760341484293,0.42938,4189.1,4189.0,0.1688]
[1760341484591,1.66096093,4190.1,4190.0,0.5688]
[1760341484994,4.80905895,4190.1,4190.0,0.5688]
[1760341485190,4.81075527,4190.1,4190.0,0.57187758]
[1760341488200,4.81075527,4190.1,4190.0,0.17187758]
[1760341488400,4.81075527,4190.1,4190.0,0.57117758]
[1760341489299,5.35613114,4190.1,4190.0,0.00307758]
[1760341490002,5.35613114,4190.1,4190.0,0.54057758]
[1760341490196,5.35613114,4190.1,4190.0,0.00307758]
[1760341490397,0.42933,4189.6,4189.5,0.5538]
[1760341490695,5.18270787,4189.6,4189.5,0.5538]
[1760341490903,0.42936,4189.3,4189.2,3.5928]
[1760341491102,4.75337787,4189.6,4189.0,0.1688]
[1760341491103,0.42938,4189.1,4189.0,0.1688]
[1760341491403,5.13427266,4189.1,4189.0,0.55650559]
[1760341493303,5.13427266,4189.1,4189.0,0.82430559]
[1760341494098,3.04393173,4189.1,4189.0,1.09620559]
[1760341494298,3.2078,4189.7,4189.0,1.09620559]
[1760341494299,1.66096093,4189.3,4189.2,0.5397]
[1760341494604,1.66096093,4189.3,4189.2,0.9247]
[1760341494799,1.66096093,4189.3,4189.2,0.385]
[1760341495500,0.42937,4189.2,4189.1,0.385]
[1760341495897,3.47400444,4189.2,4189.0,0.17150559]
[1760341496098,3.47400444,4189.2,4189.0,0.55650559]
[1760341496500,3.47400444,4189.2,4189.0,0.00270559]
[1760341496702,3.47400444,4189.2,4188.5,0.5538]
[1760341496703,0.42943,4188.6,4188.5,0.5538]
[1760341497207,3.47253373,4188.6,4188.5,0.5538]
[1760341497707,3.47253373,4188.6,4188.5,0.55551222]
[1760341500403,0.42947,4188.2,4188.0,0.5375]
[1760341500612,0.5504,4187.2,4187.1,3.4756]
[1760341500907,2.21136093,4187.2,4187.1,3.7475]
[1760341501304,2.21136093,4187.2,4187.1,0.00185182]
[1760341501305,2.40316093,4187.2,4187.1,0.00185182]
[1760341501508,5.5303551,4187.2,4187.1,0.00185182]
[1760341503304,3.86939417,4187.2,4187.1,0.00185182]
[1760341504206,0.7422,4186.2,4186.1,3.5928]
[1760341504607,3.78436256,4186.2,4186.1,3.2078]
[1760341504809,3.78436256,4186.2,4186.1,3.5928]
[1760341505210,3.78436256,4186.2,4186.1,3.86319407]
[1760341505211,3.59560766,4186.2,4186.1,3.86319407]
[1760341505714,0.0030451,4186.2,4186.1,4.13509407]
[1760341506208,3.88394877,4186.2,4186.1,3.21039407]
[1760341506408,3.88394877,4186.2,4186.1,3.59539407]
[1760341506802,3.69214877,4186.2,4186.1,3.86319407]
[1760341507005,3.69214877,4186.2,4186.1,4.13509407]
[1760341507201,0.5534451,4186.2,4186.1,4.13509407]
[1760341508410,3.61006383,4186.2,4186.1,3.86319407]
[1760341509019,0.0030451,4186.2,4186.1,4.13509407]
[1760341509311,3.88495654,4186.2,4186.1,0.38759407]
[1760341510219,3.88495654,4186.2,4186.1,0.00259407]
[1760341510714,3.88495654,4186.2,4186.1,0.38759407]
[1760341510915,3.69315654,4186.2,4186.1,0.65539407]
[1760341511316,3.88495654,4186.2,4186.1,0.00259407]
[1760341516117,3.88495654,4186.2,4185.1,3.2078]
[1760341516118,1.17198,4185.2,4185.1,3.2078]
[1760341516312,0.7422,4184.6,4184.5,0.5375]
[1760341516514,0.7422,4184.6,4184.5,0.385]
[1760341516712,0.7422,4184.5,4184.4,3.2078]
[1760341517114,0.7422,4184.5,4184.4,3.20997015]
[1760341517416,4.21618038,4184.5,4184.4,3.20997015]
[1760341518210,4.21618038,4184.5,4184.4,0.00217015]
[1760341519119,4.31208038,4184.5,4184.4,0.00217015]
[1760341519312,0.74,4183.5,4183.4,3.2078]
[1760341520413,9.72911824,4183.5,4183.4,3.21011926]
[1760341520817,9.72911824,4183.5,4183.4,0.00231926]
[1760341521017,0.42999,4183.2,4183.0,0.399]
[1760341521415,3.49071089,4183.1,4182.9,3.2078]
[1760341521713,0.43,4183.1,4182.9,3.2078]
[1760341521909,0.43,4183.1,4182.9,0.00205301]
[1760341521910,0.43281309,4183.1,4182.9,0.00205301]
[1760341522113,3.0891372,4183.0,4182.9,0.00205301]
[1760341523209,0.00281309,4183.1,4183.0,0.5583]
[1760341523419,0.00281309,4183.1,4183.0,1.50201]
[1760341524516,1.26325931,4185.8,4183.0,1.50201]
[1760341524517,3.2078,4184.3,4184.2,0.399]
[1760341525018,3.07718017,4184.3,4184.2,0.82888]
[1760341525218,3.07718017,4184.3,4184.2,1.34258]
[1760341525417,3.07718017,4184.7,4184.6,0.399]
[1760341525616,0.0019873,4184.7,4184.6,0.399]
[1760341526916,3.2078,4186.0,4185.6,0.42973]
[1760341527216,3.05046613,4185.9,4185.5,0.1593]
[1760341527422,3.05046613,4185.9,4185.0,0.1593]
[1760341527617,0.42973,4185.8,4185.0,0.1593]
[1760341527818,5.4053114,4185.5,4185.0,0.1593]
[1760341528018,0.4298,4185.0,4184.9,3.2078]
[1760341528213,0.42977,4185.3,4184.3,3.2078]
[1760341528414,3.13975081,4185.0,4184.3,3.2078]
[1760341528614,0.42979,4185.1,4184.3,3.2078]
[1760341528918,0.42984,4184.6,4184.3,3.2078]
[1760341529219,0.42989,4184.2,4183.6,3.2078]
[1760341529411,5.8352014,4184.2,4183.6,3.2078]
[1760341529613,3.06245713,4184.1,4183.1,3.2078]
[1760341529814,3.06245713,4184.1,4183.2,0.399]
[1760341530014,6.27025713,4184.1,4183.2,0.399]
[1760341530214,6.27025713,4184.1,4183.2,0.82898]
[1760341530419,6.70015713,4184.1,4183.2,0.399]
[1760341530616,6.27025713,4184.1,4183.5,0.1593]
[1760341530923,6.27025713,4184.1,4183.4,0.399]
[1760341531123,0.42991,4184.0,4183.4,0.399]
[1760341531318,5.4053114,4183.6,4183.1,3.2078]
[1760341531514,8.6131114,4183.6,4182.9,0.00205301]
[1760341531821,3.12825525,4183.5,4182.9,0.00205301]
[1760341532121,0.42999,4183.2,4182.9,0.00205301]
[1760341532318,0.42997,4183.4,4182.9,0.00205301]
[1760341532516,3.08261378,4183.1,4182.9,0.00205301]
[1760341532717,3.08261378,4183.3,4182.9,0.00205301]
[1760341532920,0.42997,4183.4,4182.9,0.00205301]
[1760341533321,3.03961111,4183.3,4182.9,0.00205301]
[1760341533820,5.4053114,4183.0,4182.9,0.00205301]
[1760341534020,5.4053114,4182.4,4181.6,3.2078]
[1760341534218,5.4053114,4182.4,4181.6,3.63794]
[1760341534415,3.15430859,4182.3,4181.6,3.63794]
[1760341534615,3.15430859,4182.3,4181.6,3.2078]
[1760341534820,3.15430859,4182.3,4181.7,0.43014]
[1760341535017,3.15673566,4182.3,4181.7,0.43014]
[1760341535421,3.15673566,4182.3,4181.9,0.43012]
[1760341536323,3.15673566,4182.3,4181.6,0.00217751]
[1760341536630,5.4053114,4181.7,4181.6,0.00217751]
[1760341537124,8.50253993,4181.7,4180.8,0.43023]
[1760341537324,8.50253993,4181.7,4180.9,0.43021]
[1760341537525,8.50253993,4181.7,4180.8,0.43023]
[1760341538116,8.50253993,4181.7,4180.9,0.43021]
[1760341538427,5.4053114,4181.1,4180.8,0.00267795]
[1760341538933,3.12480918,4181.0,4180.8,0.00267795]
[1760341539333,4.80956171,4180.9,4180.8,0.00267795]
[1760341539627,7.93437089,4181.0,4180.8,0.43290795]
[1760341539822,3.13482736,4180.9,4180.8,0.43290795]
[1760341540026,3.13482736,4180.9,4180.8,0.83190795]
[1760341540420,3.10736359,4181.3,4181.0,0.43021]
[1760341540628,4.80956171,4181.4,4181.0,0.43021]
[1760341540925,3.10736359,4181.3,4181.0,0.1593]
[1760341541129,3.10736359,4181.3,4181.2,4.03699]
[1760341541332,3.16966427,4181.5,4181.3,0.43017]
[1760341541525,4.80956171,4181.8,4181.2,3.6068]
[1760341541526,3.16966427,4181.7,4181.4,0.43016]
[1760341541830,4.80956171,4181.8,4181.2,3.6068]
[1760341542124,3.15134252,4181.7,4181.6,0.43014]
[1760341542322,3.15134252,4181.7,4181.3,0.43017]
[1760341542525,3.15134252,4181.7,4181.2,3.2078]
[1760341542725,3.15134252,4181.7,4180.8,0.40167795]
[1760341542726,4.80956171,4181.3,4180.8,0.00267795]
[1760341542922,4.80956171,4181.3,4180.9,0.43022]
[1760341543122,3.07724566,4181.2,4181.0,0.43021]
[1760341543628,3.07724566,4181.2,4180.8,0.00267795]
[1760341544017,0.43022,4181.0,4180.8,0.00267795]
[1760341544227,6.28504566,4181.2,4180.2,0.43029]
[1760341544431,4.80956171,4180.7,4180.1,3.6381]
[1760341544621,4.80956171,4180.2,4180.1,3.6381]
[1760341545020,7.98800703,4180.2,4180.1,3.6381]
[1760341545223,7.98800703,4180.2,4180.1,3.64000321]
[1760341545625,7.98800703,4180.2,4180.1,3.20970321]
[1760341547333,7.98800703,4180.2,4180.1,0.00190321]
[1760341547334,8.0296474,4180.2,4180.1,0.00190321]
[1760341547521,8.4599374,4180.2,4180.1,0.00190321]
[1760341547826,8.4599374,4180.2,4179.2,0.4051]
[1760341547827,11.2374474,4180.2,4179.2,0.4051]
[1760341548027,4.80956171,4179.3,4178.6,3.6129]
[1760341548229,4.80956171,4179.3,4178.6,3.2078]
[1760341548425,3.14444784,4179.2,4178.6,3.2078]
[1760341548631,3.14444784,4179.2,4178.6,3.63825]
[1760341548826,3.14658415,4179.2,4178.7,0.43044]
[1760341549225,0.43042,4179.0,4178.6,3.21060876]
[1760341549532,4.80956171,4178.7,4178.6,3.21060876]
[1760341549728,4.80956171,4178.7,4178.6,0.00280876]
[1760341550029,0.4305,4178.3,4178.2,0.3925]
[1760341550326,8.42139428,4178.3,4178.2,0.3925]
[1760341550733,8.42139428,4178.3,4178.0,0.1484]
[1760341550734,0.43056,4177.7,4177.5,0.1484]
[1760341550937,8.01736171,4177.6,4177.5,0.1504861]
[1760341551232,11.07777261,4177.6,4177.5,0.1504861]
[1760341551530,11.07777261,4177.6,4177.5,0.1484]
[1760341552331,11.50834261,4177.6,4177.5,0.14844962]
[1760341552628,0.43058,4177.5,4177.0,0.1591]
[1760341552828,8.01736171,4177.1,4176.5,0.1484]
[1760341553030,0.43062,4177.0,4176.5,0.1484]
[1760341553232,3.2078,4177.1,4177.0,0.1484]
[1760341553423,3.2078,4177.1,4176.5,0.1484]
[1760341553424,3.14227614,4176.9,4176.5,0.1484]
[1760341553819,4.80956171,4176.6,4176.5,0.1484]
[1760341554227,3.11211558,4176.6,4176.5,0.1484]
[1760341554433,3.11211558,4176.6,4176.5,0.57908]
[1760341554739,3.11211558,4176.7,4176.5,0.5817199]
[1760341555025,3.2078,4177.1,4177.0,0.57902]
[1760341555231,8.01736171,4177.6,4177.5,0.57897]
[1760341555418,3.2078,4177.6,4177.5,0.97147]
[1760341555619,0.19213463,4179.1,4178.0,0.97142]